[Event "Titled Tuesday Blitz July 25 Early 2023"]
[White "Rengifo Blancas, Renzo Jhonathan"]
[Black "Nan M K Khine Hlyan"]
[WhiteFideId "3807185"]
[BlackFideId "13002899"]
[WhiteElo "2506"]
[BlackElo "1719"]
[Result "1-0"]
[Round "1"]
[TimeControl "180+2"]
[Date "2023.07.25"]
[WhiteClock "0:02:24"]
[BlackClock "0:00:38"]
[Board "252"]

1. e4 {[%clk 0:03:00]}  e5 {[%clk 0:02:59]} 2. Bc4 {[%clk 0:03:00]}  Bc5 {[%clk 0:02:57]} 3. Nf3 {[%clk 0:03:00]}  Nc6 {[%clk 0:02:55]} 4. d4 {[%clk 0:03:00]}  Nxd4 {[%clk 0:02:53]} 5. Nxe5 {[%clk 0:03:00]}  d5 {[%clk 0:02:47]} 6. Bxd5 {[%clk 0:02:58]}  Ne6 {[%clk 0:02:32]} 7. Nxf7 {[%clk 0:02:55]}  Qf6 {[%clk 0:02:20]} 8. O-O {[%clk 0:02:55]}  Qxf7 {[%clk 0:02:15]} 9. Be3 {[%clk 0:02:55]}  Bd6 {[%clk 0:02:10]} 10. f4 {[%clk 0:02:55]}  Nf6 {[%clk 0:01:54]} 11. f5 {[%clk 0:02:54]}  Nxd5 {[%clk 0:01:41]} 12. fxe6 {[%clk 0:02:54]}  Qxe6 {[%clk 0:01:39]} 13. Qxd5 {[%clk 0:02:46]}  Qxd5 {[%clk 0:01:38]} 14. exd5 {[%clk 0:02:47]}  Bd7 {[%clk 0:01:28]} 15. Bg5 {[%clk 0:02:44]}  h6 {[%clk 0:01:24]} 16. Bh4 {[%clk 0:02:44]}  g5 {[%clk 0:01:23]} 17. Bg3 {[%clk 0:02:45]}  Bxg3 {[%clk 0:01:22]} 18. hxg3 {[%clk 0:02:45]}  O-O-O {[%clk 0:01:22]} 19. Nc3 {[%clk 0:02:46]}  Bg4 {[%clk 0:01:19]} 20. Rf7 {[%clk 0:02:46]}  Rd7 {[%clk 0:01:17]} 21. Raf1 {[%clk 0:02:45]}  Rh7 {[%clk 0:01:12]} 22. Rf8+ {[%clk 0:02:45]}  Rd8 {[%clk 0:01:12]} 23. Ne4 {[%clk 0:02:46]}  Be2 {[%clk 0:00:57]} 24. R1f2 {[%clk 0:02:41]}  Bb5 {[%clk 0:00:55]} 25. b3 {[%clk 0:02:37]}  c6 {[%clk 0:00:51]} 26. c4 {[%clk 0:02:36]}  Ba6 {[%clk 0:00:50]} 27. Nc5 {[%clk 0:02:31]}  cxd5 {[%clk 0:00:45]} 28. cxd5 {[%clk 0:02:31]}  Rc7 {[%clk 0:00:41]} 29. Rxd8+ {[%clk 0:02:23]}  Kxd8 {[%clk 0:00:38]} 30. Ne6+ {[%clk 0:02:24]} 1-0


[Site "https://www.chess.com"]

[Event "Titled Tuesday Blitz July 25 Early 2023"]
[White "Nakamura, Hikaru"]
[Black "Shuvalova, Polina"]
[WhiteFideId "2016192"]
[BlackFideId "24171760"]
[WhiteElo "3300"]
[BlackElo "2663"]
[Result "1-0"]
[Round "2"]
[TimeControl "180+2"]
[Date "2023.07.25"]
[WhiteClock "0:00:54"]
[BlackClock "0:00:05"]
[Board "1"]

1. a3 {[%clk 0:03:00]}  a6 {[%clk 0:02:59]} 2. e4 {[%clk 0:02:59]}  e5 {[%clk 0:02:57]} 3. Bc4 {[%clk 0:02:54]}  Nf6 {[%clk 0:02:56]} 4. d3 {[%clk 0:02:53]}  Nc6 {[%clk 0:02:55]} 5. Nc3 {[%clk 0:02:52]}  Be7 {[%clk 0:02:53]} 6. f4 {[%clk 0:02:53]}  d6 {[%clk 0:02:50]} 7. Nf3 {[%clk 0:02:51]}  O-O {[%clk 0:02:43]} 8. f5 {[%clk 0:02:50]}  Nd4 {[%clk 0:02:34]} 9. O-O {[%clk 0:02:49]}  c6 {[%clk 0:02:24]} 10. Ba2 {[%clk 0:02:45]}  d5 {[%clk 0:01:38]} 11. Kh1 {[%clk 0:02:40]}  dxe4 {[%clk 0:01:37]} 12. dxe4 {[%clk 0:02:39]}  Qc7 {[%clk 0:01:26]} 13. Qd2 {[%clk 0:02:15]}  Rd8 {[%clk 0:01:24]} 14. Qf2 {[%clk 0:02:05]}  b5 {[%clk 0:01:10]} 15. Ng5 {[%clk 0:02:03]}  Rf8 {[%clk 0:01:05]} 16. h3 {[%clk 0:01:55]}  c5 {[%clk 0:01:02]} 17. Nd5 {[%clk 0:01:50]}  Nxd5 {[%clk 0:01:02]} 18. Bxd5 {[%clk 0:01:50]}  Bb7 {[%clk 0:01:01]} 19. Bxb7 {[%clk 0:01:25]}  Qxb7 {[%clk 0:01:01]} 20. Re1 {[%clk 0:01:25]}  Bxg5 {[%clk 0:01:00]} 21. Bxg5 {[%clk 0:01:25]}  f6 {[%clk 0:01:00]} 22. Be3 {[%clk 0:01:26]}  Rfd8 {[%clk 0:00:59]} 23. c3 {[%clk 0:01:21]}  Nb3 {[%clk 0:00:54]} 24. Rad1 {[%clk 0:01:21]}  Qxe4 {[%clk 0:00:43]} 25. Bxc5 {[%clk 0:01:21]}  Qc6 {[%clk 0:00:43]} 26. Be3 {[%clk 0:01:15]}  h6 {[%clk 0:00:39]} 27. Qg3 {[%clk 0:01:13]}  Kh8 {[%clk 0:00:35]} 28. Qg6 {[%clk 0:01:12]}  Qe8 {[%clk 0:00:32]} 29. Bb6 {[%clk 0:01:06]}  Rxd1 {[%clk 0:00:25]} 30. Rxd1 {[%clk 0:01:07]}  Qc6 {[%clk 0:00:25]} 31. Be3 {[%clk 0:01:06]}  Nc5 {[%clk 0:00:17]} 32. Bxc5 {[%clk 0:01:02]}  Qxc5 {[%clk 0:00:16]} 33. Rd7 {[%clk 0:01:03]}  Rg8 {[%clk 0:00:16]} 34. Qg3 {[%clk 0:01:03]}  e4 {[%clk 0:00:12]} 35. Rd6 {[%clk 0:00:52]}  Qxf5 {[%clk 0:00:08]} 36. Rxa6 {[%clk 0:00:53]}  Re8 {[%clk 0:00:05]} 37. Ra7 {[%clk 0:00:53]}  Qg5 {[%clk 0:00:03]} 38. Qxg5 {[%clk 0:00:52]}  hxg5 {[%clk 0:00:04]} 39. Kg1 {[%clk 0:00:52]}  Rd8 {[%clk 0:00:04]} 40. Rb7 {[%clk 0:00:50]}  Rd2 {[%clk 0:00:05]} 41. Rxb5 {[%clk 0:00:49]}  e3 {[%clk 0:00:05]} 42. Kf1 {[%clk 0:00:50]}  Rf2+ {[%clk 0:00:04]} 43. Ke1 {[%clk 0:00:50]}  Rxg2 {[%clk 0:00:05]} 44. a4 {[%clk 0:00:51]}  g6 {[%clk 0:00:03]} 45. a5 {[%clk 0:00:52]}  f5 {[%clk 0:00:04]} 46. a6 {[%clk 0:00:51]}  f4 {[%clk 0:00:04]} 47. a7 {[%clk 0:00:50]}  Rg1+ {[%clk 0:00:04]} 48. Ke2 {[%clk 0:00:51]}  Ra1 {[%clk 0:00:05]} 49. Rb8+ {[%clk 0:00:51]}  Kh7 {[%clk 0:00:05]} 50. a8=Q {[%clk 0:00:52]}  Rxa8 {[%clk 0:00:04]} 51. Rxa8 {[%clk 0:00:53]}  Kg7 {[%clk 0:00:04]} 52. Kf3 {[%clk 0:00:53]}  Kf7 {[%clk 0:00:05]} 53. Ra5 {[%clk 0:00:53]}  Kf6 {[%clk 0:00:05]} 54. b4 {[%clk 0:00:54]}  Ke6 {[%clk 0:00:05]} 55. Rxg5 {[%clk 0:00:54]} 1-0


[Site "https://www.chess.com"]

[Event "Titled Tuesday Blitz July 25 Early 2023"]
[White "Seemann, Jakub"]
[Black "Vachier-Lagrave, Maxime"]
[WhiteFideId "21874697"]
[BlackFideId "623539"]
[WhiteElo "2661"]
[BlackElo "3128"]
[Result "0-1"]
[Round "2"]
[TimeControl "180+2"]
[Date "2023.07.25"]
[WhiteClock "0:00:02"]
[BlackClock "0:00:04"]
[Board "2"]

1. e4 {[%clk 0:03:00]}  c5 {[%clk 0:02:59]} 2. Nf3 {[%clk 0:03:00]}  Nc6 {[%clk 0:02:58]} 3. Bb5 {[%clk 0:02:58]}  g6 {[%clk 0:02:58]} 4. O-O {[%clk 0:02:58]}  Bg7 {[%clk 0:02:57]} 5. c3 {[%clk 0:02:58]}  Nf6 {[%clk 0:02:57]} 6. Re1 {[%clk 0:02:58]}  O-O {[%clk 0:02:56]} 7. d4 {[%clk 0:02:58]}  d5 {[%clk 0:02:55]} 8. e5 {[%clk 0:02:58]}  Ne4 {[%clk 0:02:55]} 9. Bxc6 {[%clk 0:02:58]}  bxc6 {[%clk 0:02:55]} 10. Be3 {[%clk 0:02:59]}  cxd4 {[%clk 0:02:53]} 11. cxd4 {[%clk 0:03:00]}  Rb8 {[%clk 0:02:52]} 12. Qc1 {[%clk 0:02:58]}  Qb6 {[%clk 0:02:50]} 13. b3 {[%clk 0:02:58]}  f6 {[%clk 0:02:40]} 14. Nc3 {[%clk 0:02:45]}  fxe5 {[%clk 0:02:05]} 15. Nxe5 {[%clk 0:02:41]}  c5 {[%clk 0:01:37]} 16. Nxd5 {[%clk 0:01:53]}  Qe6 {[%clk 0:01:37]} 17. Nf4 {[%clk 0:01:48]}  Qf5 {[%clk 0:01:33]} 18. Nfd3 {[%clk 0:01:41]}  cxd4 {[%clk 0:01:27]} 19. Bxd4 {[%clk 0:01:41]}  Bb7 {[%clk 0:01:22]} 20. f3 {[%clk 0:01:35]}  Ng5 {[%clk 0:01:18]} 21. Nc5 {[%clk 0:01:25]}  Bxf3 {[%clk 0:01:11]} 22. Qc4+ {[%clk 0:01:05]}  e6 {[%clk 0:00:44]} 23. Nxf3 {[%clk 0:01:04]}  Bxd4+ {[%clk 0:00:22]} 24. Nxd4 {[%clk 0:01:03]}  Qg4 {[%clk 0:00:22]} 25. Kh1 {[%clk 0:00:15]}  Rf2 {[%clk 0:00:17]} 26. Rg1 {[%clk 0:00:15]}  Re8 {[%clk 0:00:13]} 27. Raf1 {[%clk 0:00:11]}  Rxf1 {[%clk 0:00:07]} 28. Rxf1 {[%clk 0:00:12]}  Kh8 {[%clk 0:00:05]} 29. Nf3 {[%clk 0:00:09]}  Qxc4 {[%clk 0:00:05]} 30. bxc4 {[%clk 0:00:08]}  Nf7 {[%clk 0:00:06]} 31. Nd7 {[%clk 0:00:08]}  e5 {[%clk 0:00:03]} 32. c5 {[%clk 0:00:07]}  e4 {[%clk 0:00:03]} 33. Nd4 {[%clk 0:00:06]}  Nd8 {[%clk 0:00:03]} 34. c6 {[%clk 0:00:06]}  e3 {[%clk 0:00:02]} 35. c7 {[%clk 0:00:05]}  Nb7 {[%clk 0:00:02]} 36. Rf8+ {[%clk 0:00:04]}  Rxf8 {[%clk 0:00:03]} 37. Nxf8 {[%clk 0:00:05]}  Nd6 {[%clk 0:00:04]} 38. Kg1 {[%clk 0:00:04]}  Kg7 {[%clk 0:00:04]} 39. Nfe6+ {[%clk 0:00:03]}  Kf6 {[%clk 0:00:05]} 40. Nc5 {[%clk 0:00:03]}  Ke5 {[%clk 0:00:03]} 41. Nb5 {[%clk 0:00:03]}  Nc8 {[%clk 0:00:02]} 42. Nb7 {[%clk 0:00:03]}  Ke4 {[%clk 0:00:01]} 43. N7d6+ {[%clk 0:00:04]}  Kd3 {[%clk 0:00:01]} 44. Nxc8 {[%clk 0:00:03]}  e2 {[%clk 0:00:02]} 45. Kf2 {[%clk 0:00:02]}  Kd2 {[%clk 0:00:03]} 46. Ncd6 {[%clk 0:00:02]}  e1=Q+ {[%clk 0:00:04]} 47. Kf3 {[%clk 0:00:03]}  Qe3+ {[%clk 0:00:03]} 48. Kg4 {[%clk 0:00:04]}  h5+ {[%clk 0:00:04]} 49. Kh4 {[%clk 0:00:02]}  Qf4+ {[%clk 0:00:04]} 0-1


[Site "https://www.chess.com"]

[Event "Titled Tuesday Blitz July 25 Early 2023"]
[White "Spata, German"]
[Black "Dubov, Daniil"]
[WhiteFideId "113026"]
[BlackFideId "24126055"]
[WhiteElo "2657"]
[BlackElo "3097"]
[Result "0-1"]
[Round "2"]
[TimeControl "180+2"]
[Date "2023.07.25"]
[WhiteClock "0:01:02"]
[BlackClock "0:02:30"]
[Board "4"]

1. Nf3 {[%clk 0:02:55]}  d5 {[%clk 0:02:59]} 2. d4 {[%clk 0:02:55]}  Nf6 {[%clk 0:02:59]} 3. e3 {[%clk 0:02:53]}  g6 {[%clk 0:02:58]} 4. c4 {[%clk 0:02:53]}  Bg7 {[%clk 0:02:58]} 5. Nc3 {[%clk 0:02:52]}  O-O {[%clk 0:02:59]} 6. cxd5 {[%clk 0:02:52]}  Nxd5 {[%clk 0:02:59]} 7. Bc4 {[%clk 0:02:47]}  e6 {[%clk 0:02:54]} 8. O-O {[%clk 0:02:46]}  c5 {[%clk 0:02:54]} 9. Nxd5 {[%clk 0:02:26]}  exd5 {[%clk 0:02:53]} 10. Be2 {[%clk 0:02:26]}  b6 {[%clk 0:02:53]} 11. b3 {[%clk 0:02:26]}  Nc6 {[%clk 0:02:51]} 12. Bb2 {[%clk 0:02:26]}  Bg4 {[%clk 0:02:49]} 13. Rc1 {[%clk 0:02:10]}  Rc8 {[%clk 0:02:47]} 14. Qd2 {[%clk 0:01:42]}  Bxf3 {[%clk 0:02:34]} 15. Bxf3 {[%clk 0:01:42]}  cxd4 {[%clk 0:02:34]} 16. Bxd4 {[%clk 0:01:33]}  Bxd4 {[%clk 0:02:31]} 17. exd4 {[%clk 0:01:33]}  Qf6 {[%clk 0:02:31]} 18. Bxd5 {[%clk 0:01:28]}  Nxd4 {[%clk 0:02:31]} 19. Rfd1 {[%clk 0:01:02]}  Rxc1 {[%clk 0:02:30]} 20. Rxc1 {[%clk 0:01:02]}  Rd8 {[%clk 0:02:30]} 0-1


[Site "https://www.chess.com"]

[Event "Titled Tuesday Blitz July 25 Early 2023"]
[White "Giri, Anish"]
[Black "brm72"]
[WhiteFideId "24116068"]
[WhiteElo "3077"]
[BlackElo "2653"]
[Result "1/2-1/2"]
[Round "2"]
[TimeControl "180+2"]
[Date "2023.07.25"]
[WhiteClock "0:00:03"]
[BlackClock "0:00:08"]
[Board "5"]

1. e4 {[%clk 0:03:00]}  c6 {[%clk 0:02:59]} 2. d3 {[%clk 0:02:59]}  d5 {[%clk 0:03:00]} 3. Nd2 {[%clk 0:02:59]}  e5 {[%clk 0:02:58]} 4. Ngf3 {[%clk 0:03:00]}  Bd6 {[%clk 0:02:58]} 5. g3 {[%clk 0:02:59]}  Nf6 {[%clk 0:02:58]} 6. Bg2 {[%clk 0:03:00]}  O-O {[%clk 0:02:58]} 7. O-O {[%clk 0:03:00]}  Re8 {[%clk 0:02:56]} 8. Re1 {[%clk 0:03:01]}  Bg4 {[%clk 0:02:55]} 9. h3 {[%clk 0:03:01]}  Bh5 {[%clk 0:02:55]} 10. c3 {[%clk 0:02:58]}  Nbd7 {[%clk 0:02:52]} 11. Qc2 {[%clk 0:02:58]}  Qc7 {[%clk 0:02:50]} 12. Nh4 {[%clk 0:02:58]}  a5 {[%clk 0:02:48]} 13. Nf1 {[%clk 0:02:53]}  Bg6 {[%clk 0:02:33]} 14. Ne3 {[%clk 0:02:43]}  dxe4 {[%clk 0:02:26]} 15. dxe4 {[%clk 0:02:43]}  Nc5 {[%clk 0:02:14]} 16. Nef5 {[%clk 0:02:43]}  Bf8 {[%clk 0:02:12]} 17. Bg5 {[%clk 0:02:38]}  Nfd7 {[%clk 0:02:06]} 18. Be3 {[%clk 0:02:38]}  Ne6 {[%clk 0:01:56]} 19. Rad1 {[%clk 0:02:38]}  Bc5 {[%clk 0:01:36]} 20. Bc1 {[%clk 0:02:38]}  Rad8 {[%clk 0:01:26]} 21. Bf1 {[%clk 0:02:36]}  Nb6 {[%clk 0:01:24]} 22. Nxg6 {[%clk 0:02:25]}  hxg6 {[%clk 0:01:24]} 23. Nh4 {[%clk 0:02:24]}  Rxd1 {[%clk 0:01:23]} 24. Qxd1 {[%clk 0:02:21]}  Rd8 {[%clk 0:01:24]} 25. Qg4 {[%clk 0:02:13]}  Nf8 {[%clk 0:01:14]} 26. Nf3 {[%clk 0:02:10]}  Nbd7 {[%clk 0:01:11]} 27. Ng5 {[%clk 0:02:01]}  Nf6 {[%clk 0:01:01]} 28. Qf3 {[%clk 0:01:55]}  b5 {[%clk 0:00:59]} 29. a4 {[%clk 0:01:41]}  Qb6 {[%clk 0:00:58]} 30. Kg2 {[%clk 0:01:36]}  N8h7 {[%clk 0:00:57]} 31. h4 {[%clk 0:01:34]}  Nxg5 {[%clk 0:00:42]} 32. hxg5 {[%clk 0:01:25]}  Ne8 {[%clk 0:00:36]} 33. Be2 {[%clk 0:01:22]}  Nc7 {[%clk 0:00:33]} 34. Rh1 {[%clk 0:01:21]}  Ne6 {[%clk 0:00:33]} 35. Qg4 {[%clk 0:01:11]}  Kf8 {[%clk 0:00:30]} 36. f4 {[%clk 0:01:06]}  Be3 {[%clk 0:00:25]} 37. f5 {[%clk 0:01:02]}  Nxg5 {[%clk 0:00:20]} 38. fxg6 {[%clk 0:00:45]}  Bxc1 {[%clk 0:00:18]} 39. Rxc1 {[%clk 0:00:34]}  Qe3 {[%clk 0:00:18]} 40. Rf1 {[%clk 0:00:31]}  f6 {[%clk 0:00:13]} 41. axb5 {[%clk 0:00:21]}  cxb5 {[%clk 0:00:13]} 42. Bf3 {[%clk 0:00:14]}  b4 {[%clk 0:00:10]} 43. cxb4 {[%clk 0:00:14]}  axb4 {[%clk 0:00:11]} 44. Rf2 {[%clk 0:00:13]}  Rd2 {[%clk 0:00:09]} 45. Qc8+ {[%clk 0:00:13]}  Ke7 {[%clk 0:00:09]} 46. Qc7+ {[%clk 0:00:11]}  Rd7 {[%clk 0:00:09]} 47. Qb8 {[%clk 0:00:08]}  Nxf3 {[%clk 0:00:09]} 48. Qxb4+ {[%clk 0:00:09]}  Ke8 {[%clk 0:00:07]} 49. Qb8+ {[%clk 0:00:06]}  Ke7 {[%clk 0:00:07]} 50. Qb4+ {[%clk 0:00:06]}  Ke8 {[%clk 0:00:07]} 51. Qb8+ {[%clk 0:00:04]}  Ke7 {[%clk 0:00:08]} 52. Qb4+ {[%clk 0:00:03]} 1/2-1/2


[Site "https://www.chess.com"]

[Event "Titled Tuesday Blitz July 25 Early 2023"]
[White "Hilary46"]
[Black "Sarana, Alexey"]
[BlackFideId "24133795"]
[WhiteElo "2640"]
[BlackElo "3055"]
[Result "0-1"]
[Round "2"]
[TimeControl "180+2"]
[Date "2023.07.25"]
[WhiteClock "0:00:01"]
[BlackClock "0:00:13"]
[Board "6"]

1. e4 {[%clk 0:03:00]}  e5 {[%clk 0:03:00]} 2. Nf3 {[%clk 0:03:01]}  Nc6 {[%clk 0:03:01]} 3. Bb5 {[%clk 0:03:02]}  Nf6 {[%clk 0:03:00]} 4. O-O {[%clk 0:03:01]}  Nxe4 {[%clk 0:03:00]} 5. Re1 {[%clk 0:03:02]}  Nd6 {[%clk 0:03:00]} 6. Nxe5 {[%clk 0:03:03]}  Nxe5 {[%clk 0:02:59]} 7. Rxe5+ {[%clk 0:03:03]}  Be7 {[%clk 0:03:00]} 8. Bd3 {[%clk 0:03:04]}  O-O {[%clk 0:02:55]} 9. Nc3 {[%clk 0:03:05]}  c6 {[%clk 0:02:53]} 10. b3 {[%clk 0:03:04]}  Bf6 {[%clk 0:02:50]} 11. Rh5 {[%clk 0:02:37]}  g6 {[%clk 0:02:50]} 12. Ba3 {[%clk 0:02:37]}  Qc7 {[%clk 0:02:43]} 13. Qg4 {[%clk 0:01:48]}  Re8 {[%clk 0:02:35]} 14. Qf4 {[%clk 0:01:33]}  Re6 {[%clk 0:02:04]} 15. Qh6 {[%clk 0:01:25]}  Bg7 {[%clk 0:02:04]} 16. Qxh7+ {[%clk 0:01:25]}  Kf8 {[%clk 0:02:05]} 17. Rh3 {[%clk 0:01:17]}  Qa5 {[%clk 0:02:04]} 18. Bxd6+ {[%clk 0:01:00]}  Rxd6 {[%clk 0:02:03]} 19. Rf3 {[%clk 0:01:01]}  Rf6 {[%clk 0:01:55]} 20. Re3 {[%clk 0:00:43]}  d5 {[%clk 0:01:51]} 21. Rae1 {[%clk 0:00:44]}  Be6 {[%clk 0:01:27]} 22. Qh4 {[%clk 0:00:42]}  Re8 {[%clk 0:01:20]} 23. b4 {[%clk 0:00:40]}  Qc7 {[%clk 0:01:16]} 24. Ne2 {[%clk 0:00:31]}  Kg8 {[%clk 0:01:12]} 25. g3 {[%clk 0:00:25]}  c5 {[%clk 0:01:04]} 26. bxc5 {[%clk 0:00:24]}  Qxc5 {[%clk 0:01:05]} 27. c3 {[%clk 0:00:17]}  Bd7 {[%clk 0:00:52]} 28. Rxe8+ {[%clk 0:00:16]}  Bxe8 {[%clk 0:00:53]} 29. Nd4 {[%clk 0:00:16]}  Bd7 {[%clk 0:00:52]} 30. Bf1 {[%clk 0:00:08]}  Qa3 {[%clk 0:00:34]} 31. Qg5 {[%clk 0:00:03]}  Qd6 {[%clk 0:00:19]} 32. Bg2 {[%clk 0:00:03]}  Bc6 {[%clk 0:00:20]} 33. Qe3 {[%clk 0:00:02]}  Bf8 {[%clk 0:00:15]} 34. h4 {[%clk 0:00:01]}  Qd7 {[%clk 0:00:13]} 0-1


[Site "https://www.chess.com"]

[Event "Titled Tuesday Blitz July 25 Early 2023"]
[White "Bluebaum, Matthias"]
[Black "Lewicki, Miroslaw"]
[WhiteFideId "24651516"]
[BlackFideId "1113380"]
[WhiteElo "3046"]
[BlackElo "2631"]
[Result "1-0"]
[Round "2"]
[TimeControl "180+2"]
[Date "2023.07.25"]
[WhiteClock "0:01:06"]
[BlackClock "0:00:02"]
[Board "7"]

1. d4 {[%clk 0:03:00]}  Nf6 {[%clk 0:02:59]} 2. c4 {[%clk 0:03:00]}  e6 {[%clk 0:03:00]} 3. Nc3 {[%clk 0:03:01]}  d5 {[%clk 0:03:00]} 4. cxd5 {[%clk 0:03:02]}  exd5 {[%clk 0:03:00]} 5. Bg5 {[%clk 0:03:02]}  Be7 {[%clk 0:03:00]} 6. e3 {[%clk 0:03:03]}  O-O {[%clk 0:03:01]} 7. Bd3 {[%clk 0:03:03]}  Nbd7 {[%clk 0:03:01]} 8. Qc2 {[%clk 0:03:02]}  h6 {[%clk 0:03:01]} 9. Bf4 {[%clk 0:03:02]}  c6 {[%clk 0:02:58]} 10. h3 {[%clk 0:03:02]}  Nb6 {[%clk 0:02:48]} 11. Nf3 {[%clk 0:03:00]}  Bd6 {[%clk 0:02:43]} 12. Ne5 {[%clk 0:03:00]}  Nc4 {[%clk 0:02:34]} 13. Bh2 {[%clk 0:02:52]}  Bxe5 {[%clk 0:02:28]} 14. dxe5 {[%clk 0:02:51]}  Nd7 {[%clk 0:02:29]} 15. Bxc4 {[%clk 0:02:44]}  dxc4 {[%clk 0:02:28]} 16. O-O {[%clk 0:02:37]}  Nc5 {[%clk 0:02:23]} 17. Rad1 {[%clk 0:02:32]}  Qa5 {[%clk 0:02:13]} 18. f4 {[%clk 0:02:16]}  Nd3 {[%clk 0:02:05]} 19. b3 {[%clk 0:02:15]}  Qc5 {[%clk 0:01:48]} 20. bxc4 {[%clk 0:01:52]}  Qxe3+ {[%clk 0:01:46]} 21. Kh1 {[%clk 0:01:52]}  Bf5 {[%clk 0:01:37]} 22. Rf3 {[%clk 0:01:49]}  Ne1 {[%clk 0:00:46]} 23. Rxe3 {[%clk 0:01:49]}  Nxc2 {[%clk 0:00:45]} 24. Re2 {[%clk 0:01:50]}  Rfd8 {[%clk 0:00:41]} 25. Red2 {[%clk 0:01:50]}  Rxd2 {[%clk 0:00:31]} 26. Rxd2 {[%clk 0:01:51]}  Ne3 {[%clk 0:00:31]} 27. c5 {[%clk 0:01:46]}  Be6 {[%clk 0:00:28]} 28. g4 {[%clk 0:01:42]}  b6 {[%clk 0:00:23]} 29. f5 {[%clk 0:01:41]}  Bd5+ {[%clk 0:00:22]} 30. Nxd5 {[%clk 0:01:42]}  Nxd5 {[%clk 0:00:22]} 31. Kg2 {[%clk 0:01:24]}  b5 {[%clk 0:00:22]} 32. Kf3 {[%clk 0:01:24]}  a5 {[%clk 0:00:21]} 33. Ke4 {[%clk 0:01:23]}  b4 {[%clk 0:00:20]} 34. e6 {[%clk 0:01:18]}  fxe6 {[%clk 0:00:14]} 35. fxe6 {[%clk 0:01:19]}  a4 {[%clk 0:00:15]} 36. Ke5 {[%clk 0:01:10]}  b3 {[%clk 0:00:03]} 37. axb3 {[%clk 0:01:11]}  a3 {[%clk 0:00:04]} 38. Kd6 {[%clk 0:01:12]}  a2 {[%clk 0:00:03]} 39. Be5 {[%clk 0:01:12]}  Nb4 {[%clk 0:00:02]} 40. e7 {[%clk 0:01:06]} 1-0


[Site "https://www.chess.com"]

[Event "Titled Tuesday Blitz July 25 Early 2023"]
[White "Manelyuk, Daniil"]
[Black "Andreikin, Dmitry"]
[WhiteFideId "44173920"]
[BlackFideId "4158814"]
[WhiteElo "2631"]
[BlackElo "3039"]
[Result "1-0"]
[Round "2"]
[TimeControl "180+2"]
[Date "2023.07.25"]
[WhiteClock "0:00:23"]
[BlackClock "0:00:03"]
[Board "8"]

1. e4 {[%clk 0:03:00]}  c5 {[%clk 0:02:59]} 2. Nf3 {[%clk 0:03:00]}  e6 {[%clk 0:02:59]} 3. d4 {[%clk 0:03:00]}  cxd4 {[%clk 0:03:00]} 4. Nxd4 {[%clk 0:03:01]}  Nc6 {[%clk 0:03:00]} 5. Nc3 {[%clk 0:03:00]}  Qc7 {[%clk 0:03:00]} 6. Be3 {[%clk 0:03:00]}  a6 {[%clk 0:03:00]} 7. Qd2 {[%clk 0:02:59]}  Nf6 {[%clk 0:02:59]} 8. O-O-O {[%clk 0:02:59]}  Be7 {[%clk 0:02:58]} 9. f3 {[%clk 0:02:52]}  b5 {[%clk 0:02:56]} 10. Nxc6 {[%clk 0:02:49]}  dxc6 {[%clk 0:02:54]} 11. Qf2 {[%clk 0:02:47]}  e5 {[%clk 0:02:45]} 12. Bb6 {[%clk 0:02:42]}  Qb7 {[%clk 0:02:41]} 13. Bc5 {[%clk 0:02:42]}  Be6 {[%clk 0:02:38]} 14. g4 {[%clk 0:02:25]}  O-O {[%clk 0:02:36]} 15. h4 {[%clk 0:02:17]}  a5 {[%clk 0:02:25]} 16. h5 {[%clk 0:02:12]}  a4 {[%clk 0:02:17]} 17. a3 {[%clk 0:01:44]}  Rfb8 {[%clk 0:01:53]} 18. g5 {[%clk 0:01:39]}  Bxc5 {[%clk 0:01:50]} 19. Qxc5 {[%clk 0:01:38]}  Nd7 {[%clk 0:01:51]} 20. Qd6 {[%clk 0:01:38]}  b4 {[%clk 0:01:47]} 21. Qxb4 {[%clk 0:01:34]}  Qa7 {[%clk 0:01:29]} 22. Qd6 {[%clk 0:01:33]}  Qb6 {[%clk 0:01:13]} 23. g6 {[%clk 0:01:14]}  Qxb2+ {[%clk 0:01:12]} 24. Kd2 {[%clk 0:01:14]}  Qb6 {[%clk 0:01:01]} 25. gxf7+ {[%clk 0:01:09]}  Bxf7 {[%clk 0:01:00]} 26. Rh2 {[%clk 0:00:59]}  Rd8 {[%clk 0:00:55]} 27. Bd3 {[%clk 0:00:58]}  Ra5 {[%clk 0:00:33]} 28. Rg2 {[%clk 0:00:54]}  Qc5 {[%clk 0:00:22]} 29. Qh6 {[%clk 0:00:49]}  Bg6 {[%clk 0:00:10]} 30. Qg5 {[%clk 0:00:46]}  Nf8 {[%clk 0:00:09]} 31. Qxd8 {[%clk 0:00:43]}  Bxh5 {[%clk 0:00:09]} 32. Rdg1 {[%clk 0:00:42]}  Bg6 {[%clk 0:00:09]} 33. Ne2 {[%clk 0:00:34]}  Ra7 {[%clk 0:00:08]} 34. Rxg6 {[%clk 0:00:30]}  hxg6 {[%clk 0:00:08]} 35. Rxg6 {[%clk 0:00:31]}  Rd7 {[%clk 0:00:07]} 36. Qe8 {[%clk 0:00:31]}  Qxa3 {[%clk 0:00:06]} 37. Rxc6 {[%clk 0:00:29]}  Qb4+ {[%clk 0:00:07]} 38. Nc3 {[%clk 0:00:30]}  a3 {[%clk 0:00:06]} 39. Rc8 {[%clk 0:00:28]}  Rd4 {[%clk 0:00:03]} 40. Ra8 {[%clk 0:00:24]}  Qc5 {[%clk 0:00:02]} 41. Nd5 {[%clk 0:00:23]}  Rxd5 {[%clk 0:00:02]} 42. exd5 {[%clk 0:00:23]}  Qf2+ {[%clk 0:00:03]} 43. Kc3 {[%clk 0:00:23]}  Qd4+ {[%clk 0:00:03]} 44. Kb3 {[%clk 0:00:23]}  Qb2+ {[%clk 0:00:04]} 45. Ka4 {[%clk 0:00:23]}  a2 {[%clk 0:00:03]} 46. Qxf8# {[%clk 0:00:23]} 1-0


[Site "https://www.chess.com"]